[Event "Titled Tuesday Blitz April 11 Early 2023"]
[White "Makhnev, Denis"]
[Black "Shuvalov, Evgenij"]
[WhiteFideId "13707647"]
[BlackFideId "4187237"]
[WhiteElo "2515"]
[BlackElo "2080"]
[Result "0-1"]
[Round "05"]
[TimeControl "180+2"]
[Date "2023.04.11"]
[WhiteClock "0:00:06"]
[BlackClock "0:00:16"]

1. Nf3 {[%clk 0:03:00]}  Nf6 {[%clk 0:02:59]} 2. c4 {[%clk 0:03:00]}  g6 {[%clk 0:02:57]} 3. b4 {[%clk 0:02:57]}  Bg7 {[%clk 0:02:56]} 4. Bb2 {[%clk 0:02:57]}  O-O {[%clk 0:02:56]} 5. g3 {[%clk 0:02:58]}  c6 {[%clk 0:02:55]} 6. Bg2 {[%clk 0:02:57]}  d5 {[%clk 0:02:56]} 7. cxd5 {[%clk 0:02:57]}  cxd5 {[%clk 0:02:56]} 8. O-O {[%clk 0:02:56]}  Qb6 {[%clk 0:02:41]} 9. a3 {[%clk 0:02:44]}  Nc6 {[%clk 0:02:40]} 10. Nc3 {[%clk 0:02:41]}  a5 {[%clk 0:02:03]} 11. b5 {[%clk 0:02:32]}  Nd4 {[%clk 0:01:50]} 12. Nxd4 {[%clk 0:02:24]}  Qxd4 {[%clk 0:01:51]} 13. Na4 {[%clk 0:02:12]}  Qa7 {[%clk 0:01:24]} 14. Qb3 {[%clk 0:02:07]}  Be6 {[%clk 0:01:17]} 15. Rac1 {[%clk 0:01:38]}  Rac8 {[%clk 0:01:13]} 16. Bxf6 {[%clk 0:01:02]}  Bxf6 {[%clk 0:01:07]} 17. Bxd5 {[%clk 0:01:02]}  Bxd5 {[%clk 0:00:53]} 18. Qxd5 {[%clk 0:01:03]}  Rcd8 {[%clk 0:00:50]} 19. Qa2 {[%clk 0:00:24]}  Qd4 {[%clk 0:00:49]} 20. Nc5 {[%clk 0:00:23]}  Qxd2 {[%clk 0:00:42]} 21. Qxd2 {[%clk 0:00:19]}  Rxd2 {[%clk 0:00:43]} 22. Nxb7 {[%clk 0:00:18]}  Rb8 {[%clk 0:00:36]} 23. Nxa5 {[%clk 0:00:18]}  Rxb5 {[%clk 0:00:36]} 24. Nc4 {[%clk 0:00:13]}  Rxe2 {[%clk 0:00:34]} 25. Rfe1 {[%clk 0:00:12]}  Ra2 {[%clk 0:00:31]} 26. Red1 {[%clk 0:00:10]}  Rf5 {[%clk 0:00:26]} 27. Rd2 {[%clk 0:00:07]}  Rxd2 {[%clk 0:00:23]} 28. Nxd2 {[%clk 0:00:08]}  Bb2 {[%clk 0:00:18]} 29. Rc8+ {[%clk 0:00:07]}  Kg7 {[%clk 0:00:18]} 30. a4 {[%clk 0:00:08]}  Bd4 {[%clk 0:00:17]} 31. Ne4 {[%clk 0:00:06]}  Re5 {[%clk 0:00:16]} 0-1


[Site "https://www.chess.com"]

[Event "Titled Tuesday Blitz April 11 Early 2023"]
[White "Ramirez Vido, Robert Yorisan"]
[Black "Mendez Fortes, Eduardo Jesus"]
[WhiteFideId "3513823"]
[BlackFideId "3502376"]
[WhiteElo "2455"]
[BlackElo "2307"]
[Result "1-0"]
[Round "05"]
[TimeControl "180+2"]
[Date "2023.04.11"]
[WhiteClock "0:00:53"]
[BlackClock "0:00:18"]

1. f4 {[%clk 0:03:00]}  d5 {[%clk 0:02:56]} 2. Nf3 {[%clk 0:03:00]}  Nf6 {[%clk 0:02:56]} 3. g3 {[%clk 0:03:01]}  g6 {[%clk 0:02:55]} 4. Bg2 {[%clk 0:03:01]}  Bg7 {[%clk 0:02:56]} 5. d3 {[%clk 0:03:02]}  c5 {[%clk 0:02:56]} 6. O-O {[%clk 0:03:03]}  O-O {[%clk 0:02:57]} 7. Qe1 {[%clk 0:03:03]}  Nc6 {[%clk 0:02:57]} 8. e4 {[%clk 0:03:04]}  dxe4 {[%clk 0:02:41]} 9. dxe4 {[%clk 0:03:04]}  e5 {[%clk 0:02:40]} 10. Nc3 {[%clk 0:03:04]}  Re8 {[%clk 0:02:32]} 11. fxe5 {[%clk 0:03:03]}  Nxe5 {[%clk 0:02:25]} 12. Nxe5 {[%clk 0:03:04]}  Rxe5 {[%clk 0:02:25]} 13. Bf4 {[%clk 0:03:04]}  Re8 {[%clk 0:02:24]} 14. Rd1 {[%clk 0:03:04]}  Qb6 {[%clk 0:02:19]} 15. Rd6 {[%clk 0:03:04]}  Qxb2 {[%clk 0:02:11]} 16. Bc1 {[%clk 0:02:56]}  Qb4 {[%clk 0:02:10]} 17. Rdxf6 {[%clk 0:02:42]}  Bxf6 {[%clk 0:01:59]} 18. Rxf6 {[%clk 0:02:42]}  Qd4+ {[%clk 0:01:59]} 19. Rf2 {[%clk 0:02:37]}  Be6 {[%clk 0:01:54]} 20. Be3 {[%clk 0:02:32]}  Qe5 {[%clk 0:01:49]} 21. Bf4 {[%clk 0:02:10]}  Qd4 {[%clk 0:01:48]} 22. Nb5 {[%clk 0:01:56]}  Qd7 {[%clk 0:01:34]} 23. Nc7 {[%clk 0:01:54]}  Bxa2 {[%clk 0:01:34]} 24. Nxa8 {[%clk 0:01:52]}  Rxa8 {[%clk 0:01:33]} 25. Qa5 {[%clk 0:01:43]}  Qd1+ {[%clk 0:01:23]} 26. Rf1 {[%clk 0:01:39]}  Qxc2 {[%clk 0:01:18]} 27. Rc1 {[%clk 0:01:27]}  Qb2 {[%clk 0:00:53]} 28. Qxc5 {[%clk 0:01:23]}  Be6 {[%clk 0:00:49]} 29. Be5 {[%clk 0:01:19]}  Qd2 {[%clk 0:00:45]} 30. Qc3 {[%clk 0:01:00]}  Qh6 {[%clk 0:00:23]} 31. Bf4 {[%clk 0:00:58]}  Qf8 {[%clk 0:00:22]} 32. Qf6 {[%clk 0:00:55]}  a5 {[%clk 0:00:18]} 33. Be5 {[%clk 0:00:53]} 1-0


[Site "https://www.chess.com"]

[Event "Titled Tuesday Blitz April 11 Early 2023"]
[White "Harriott, Tyrell"]
[Black "Skvortsov, Andrei"]
[WhiteFideId "2086484"]
[BlackFideId "24108600"]
[WhiteElo "2107"]
[BlackElo "2259"]
[Result "0-1"]
[Round "05"]
[TimeControl "180+2"]
[Date "2023.04.11"]
[WhiteClock "0:00:02"]
[BlackClock "0:00:55"]

1. d4 {[%clk 0:03:00]}  d5 {[%clk 0:02:55]} 2. e3 {[%clk 0:03:01]}  c5 {[%clk 0:02:54]} 3. c3 {[%clk 0:03:01]}  cxd4 {[%clk 0:02:49]} 4. exd4 {[%clk 0:03:00]}  Nf6 {[%clk 0:02:41]} 5. Bd3 {[%clk 0:03:00]}  Qc7 {[%clk 0:02:38]} 6. f4 {[%clk 0:03:00]}  Bg4 {[%clk 0:02:36]} 7. Nf3 {[%clk 0:02:56]}  Nc6 {[%clk 0:02:35]} 8. O-O {[%clk 0:02:55]}  e6 {[%clk 0:02:30]} 9. Qe1 {[%clk 0:02:50]}  Bxf3 {[%clk 0:02:30]} 10. Rxf3 {[%clk 0:02:50]}  O-O-O {[%clk 0:02:30]} 11. b4 {[%clk 0:02:44]}  Bd6 {[%clk 0:02:27]} 12. a4 {[%clk 0:02:42]}  Kb8 {[%clk 0:02:25]} 13. a5 {[%clk 0:02:39]}  Rc8 {[%clk 0:02:25]} 14. Nd2 {[%clk 0:02:33]}  Bxf4 {[%clk 0:02:19]} 15. h3 {[%clk 0:02:20]}  Bh2+ {[%clk 0:02:18]} 16. Kh1 {[%clk 0:02:19]}  Bd6 {[%clk 0:02:19]} 17. Nb3 {[%clk 0:02:16]}  Ne7 {[%clk 0:02:13]} 18. Nc5 {[%clk 0:02:14]}  Nh5 {[%clk 0:02:03]} 19. Rxf7 {[%clk 0:02:08]}  e5 {[%clk 0:02:01]} 20. Be2 {[%clk 0:01:40]}  Nf6 {[%clk 0:01:50]} 21. Rxg7 {[%clk 0:01:36]}  Rcg8 {[%clk 0:01:47]} 22. Rf7 {[%clk 0:01:31]}  Rg6 {[%clk 0:01:40]} 23. Qf1 {[%clk 0:01:25]}  Ne4 {[%clk 0:01:26]} 24. Nxe4 {[%clk 0:00:50]}  dxe4 {[%clk 0:01:25]} 25. Be3 {[%clk 0:00:29]}  Qxc3 {[%clk 0:01:19]} 26. dxe5 {[%clk 0:00:21]}  Qxe5 {[%clk 0:01:15]} 27. Bf4 {[%clk 0:00:20]}  Qe6 {[%clk 0:01:07]} 28. Bxd6+ {[%clk 0:00:19]}  Qxd6 {[%clk 0:01:06]} 29. Rf8+ {[%clk 0:00:16]}  Rxf8 {[%clk 0:01:05]} 30. Qxf8+ {[%clk 0:00:17]}  Nc8 {[%clk 0:01:06]} 31. Rc1 {[%clk 0:00:17]}  Qxf8 {[%clk 0:01:06]} 32. Bg4 {[%clk 0:00:10]}  Rc6 {[%clk 0:01:04]} 33. Rd1 {[%clk 0:00:10]}  a6 {[%clk 0:00:59]} 34. Kg1 {[%clk 0:00:08]}  Qxb4 {[%clk 0:00:58]} 35. Kh1 {[%clk 0:00:08]}  Qxa5 {[%clk 0:00:57]} 36. Kh2 {[%clk 0:00:07]}  Qc7+ {[%clk 0:00:57]} 37. Kh1 {[%clk 0:00:07]}  Rc1 {[%clk 0:00:57]} 38. Rxc1 {[%clk 0:00:06]}  Qxc1+ {[%clk 0:00:57]} 39. Kh2 {[%clk 0:00:06]}  a5 {[%clk 0:00:57]} 40. h4 {[%clk 0:00:05]}  Nd6 {[%clk 0:00:56]} 41. h5 {[%clk 0:00:05]}  h6 {[%clk 0:00:56]} 42. Kh3 {[%clk 0:00:05]}  a4 {[%clk 0:00:56]} 43. Kh2 {[%clk 0:00:05]}  a3 {[%clk 0:00:56]} 44. Kh3 {[%clk 0:00:05]}  a2 {[%clk 0:00:56]} 45. Be2 {[%clk 0:00:04]}  a1=Q {[%clk 0:00:56]} 46. Kg3 {[%clk 0:00:03]}  Qe5+ {[%clk 0:00:55]} 47. Kg4 {[%clk 0:00:02]}  Qcg5+ {[%clk 0:00:55]} 0-1


[Site "https://www.chess.com"]

[Event "Titled Tuesday Blitz April 11 Early 2023"]
[White "Zemlyanskii, Ivan"]
[Black "Francisco Guecamburu, Candela Be"]
[WhiteFideId "24249971"]
[BlackFideId "160911"]
[WhiteElo "2419"]
[BlackElo "2326"]
[Result "1-0"]
[Round "05"]
[TimeControl "180+2"]
[Date "2023.04.11"]
[WhiteClock "0:00:47"]
[BlackClock "0:00:02"]

1. d4 {[%clk 0:03:00]}  Nf6 {[%clk 0:02:57]} 2. c4 {[%clk 0:03:00]}  c5 {[%clk 0:02:57]} 3. d5 {[%clk 0:03:00]}  e6 {[%clk 0:02:57]} 4. Bf4 {[%clk 0:02:59]}  exd5 {[%clk 0:02:56]} 5. cxd5 {[%clk 0:02:56]}  d6 {[%clk 0:02:56]} 6. e4 {[%clk 0:02:56]}  g6 {[%clk 0:02:49]} 7. Bb5+ {[%clk 0:02:55]}  Bd7 {[%clk 0:02:45]} 8. Bd3 {[%clk 0:02:54]}  Nh5 {[%clk 0:02:39]} 9. Bd2 {[%clk 0:02:54]}  Bg7 {[%clk 0:02:37]} 10. Bc3 {[%clk 0:02:49]}  O-O {[%clk 0:02:35]} 11. Bxg7 {[%clk 0:02:41]}  Kxg7 {[%clk 0:02:36]} 12. Nc3 {[%clk 0:02:23]}  Na6 {[%clk 0:02:26]} 13. Nge2 {[%clk 0:02:13]}  Nb4 {[%clk 0:02:10]} 14. Bc4 {[%clk 0:02:12]}  Rb8 {[%clk 0:02:01]} 15. a3 {[%clk 0:02:03]}  Na6 {[%clk 0:01:51]} 16. a4 {[%clk 0:01:59]}  Nb4 {[%clk 0:01:49]} 17. Qd2 {[%clk 0:01:56]}  Re8 {[%clk 0:01:44]} 18. O-O {[%clk 0:01:53]}  b6 {[%clk 0:01:34]} 19. f4 {[%clk 0:01:34]}  a6 {[%clk 0:01:23]} 20. Ng3 {[%clk 0:01:19]}  Nxg3 {[%clk 0:01:06]} 21. hxg3 {[%clk 0:01:20]}  f5 {[%clk 0:01:00]} 22. Rae1 {[%clk 0:01:07]}  fxe4 {[%clk 0:00:54]} 23. Nxe4 {[%clk 0:01:08]}  Rxe4 {[%clk 0:00:21]} 24. Rxe4 {[%clk 0:01:07]}  Bf5 {[%clk 0:00:18]} 25. Qc3+ {[%clk 0:01:07]}  Kg8 {[%clk 0:00:17]} 26. Re3 {[%clk 0:00:57]}  b5 {[%clk 0:00:17]} 27. axb5 {[%clk 0:00:58]}  axb5 {[%clk 0:00:18]} 28. Bb3 {[%clk 0:00:58]}  Qd7 {[%clk 0:00:05]} 29. Rfe1 {[%clk 0:00:57]}  Qg7 {[%clk 0:00:02]} 30. Re7 {[%clk 0:00:55]}  Qxc3 {[%clk 0:00:01]} 31. bxc3 {[%clk 0:00:56]}  Nd3 {[%clk 0:00:01]} 32. Ra1 {[%clk 0:00:56]}  c4 {[%clk 0:00:01]} 33. Bc2 {[%clk 0:00:57]}  Nc5 {[%clk 0:00:01]} 34. Bxf5 {[%clk 0:00:56]}  gxf5 {[%clk 0:00:02]} 35. Raa7 {[%clk 0:00:56]}  b4 {[%clk 0:00:02]} 36. cxb4 {[%clk 0:00:50]}  Ne4 {[%clk 0:00:02]} 37. Rac7 {[%clk 0:00:49]}  c3 {[%clk 0:00:02]} 38. g4 {[%clk 0:00:49]}  Nd2 {[%clk 0:00:01]} 39. gxf5 {[%clk 0:00:47]}  Nb3 {[%clk 0:00:01]} 40. f6 {[%clk 0:00:46]}  Nd4 {[%clk 0:00:01]} 41. Rg7+ {[%clk 0:00:46]}  Kf8 {[%clk 0:00:02]} 42. Rxh7 {[%clk 0:00:47]}  Kg8 {[%clk 0:00:02]} 43. Rcg7+ {[%clk 0:00:47]} 1-0


[Site "https://www.chess.com"]

[Event "Titled Tuesday Blitz April 11 Early 2023"]
[White "Mortazavi, Ali"]
[Black "Mikhailovsky, Vladimir"]
[WhiteFideId "401323"]
[BlackFideId "34105414"]
[WhiteElo "2339"]
[BlackElo "2275"]
[Result "0-1"]
[Round "05"]
[TimeControl "180+2"]
[Date "2023.04.11"]
[WhiteClock "0:00:04"]
[BlackClock "0:00:06"]

1. Nf3 {[%clk 0:02:55]}  g6 {[%clk 0:02:52]} 2. e4 {[%clk 0:02:55]}  Bg7 {[%clk 0:02:53]} 3. d4 {[%clk 0:02:55]}  a6 {[%clk 0:02:49]} 4. Nc3 {[%clk 0:02:48]}  b5 {[%clk 0:02:49]} 5. a4 {[%clk 0:02:48]}  b4 {[%clk 0:02:50]} 6. Ne2 {[%clk 0:02:48]}  Bb7 {[%clk 0:02:50]} 7. Ng3 {[%clk 0:02:49]}  Nf6 {[%clk 0:02:48]} 8. Bd3 {[%clk 0:02:49]}  O-O {[%clk 0:02:49]} 9. e5 {[%clk 0:02:47]}  Nd5 {[%clk 0:02:47]} 10. h4 {[%clk 0:02:47]}  d6 {[%clk 0:02:25]} 11. h5 {[%clk 0:02:46]}  e6 {[%clk 0:02:03]} 12. Qe2 {[%clk 0:02:33]}  f5 {[%clk 0:01:39]} 13. exf6 {[%clk 0:02:00]}  Qxf6 {[%clk 0:01:39]} 14. hxg6 {[%clk 0:02:00]}  hxg6 {[%clk 0:01:20]} 15. Ne4 {[%clk 0:02:00]}  Qe7 {[%clk 0:01:05]} 16. Neg5 {[%clk 0:01:54]}  Rf5 {[%clk 0:01:02]} 17. Qxe6+ {[%clk 0:00:59]}  Qxe6+ {[%clk 0:01:00]} 18. Nxe6 {[%clk 0:01:00]}  Rf6 {[%clk 0:00:48]} 19. Nxg7 {[%clk 0:00:56]}  Kxg7 {[%clk 0:00:48]} 20. Bh6+ {[%clk 0:00:56]}  Kg8 {[%clk 0:00:45]} 21. O-O-O {[%clk 0:00:56]}  Nd7 {[%clk 0:00:35]} 22. Bg5 {[%clk 0:00:55]}  Re6 {[%clk 0:00:35]} 23. Rh6 {[%clk 0:00:55]}  Nf8 {[%clk 0:00:35]} 24. Rdh1 {[%clk 0:00:52]}  Ne7 {[%clk 0:00:29]} 25. Bc4 {[%clk 0:00:39]}  Bd5 {[%clk 0:00:24]} 26. Bxd5 {[%clk 0:00:33]}  Nxd5 {[%clk 0:00:25]} 27. Bd2 {[%clk 0:00:30]}  Rf6 {[%clk 0:00:15]} 28. Ng5 {[%clk 0:00:30]}  Re8 {[%clk 0:00:12]} 29. f3 {[%clk 0:00:28]}  a5 {[%clk 0:00:12]} 30. Rh8+ {[%clk 0:00:27]}  Kg7 {[%clk 0:00:12]} 31. Ne4 {[%clk 0:00:27]}  Rf5 {[%clk 0:00:11]} 32. R1h3 {[%clk 0:00:26]}  Nf4 {[%clk 0:00:09]} 33. R3h4 {[%clk 0:00:24]}  Nxg2 {[%clk 0:00:06]} 34. Rh2 {[%clk 0:00:19]}  Nf4 {[%clk 0:00:06]} 35. Kb1 {[%clk 0:00:18]}  d5 {[%clk 0:00:06]} 36. Nc5 {[%clk 0:00:15]}  Nh5 {[%clk 0:00:06]} 37. R8xh5 {[%clk 0:00:11]}  Rxh5 {[%clk 0:00:06]} 38. Rg2 {[%clk 0:00:11]}  Ne6 {[%clk 0:00:06]} 39. Nb7 {[%clk 0:00:09]}  Ra8 {[%clk 0:00:05]} 40. c3 {[%clk 0:00:08]}  Ra7 {[%clk 0:00:05]} 41. Nc5 {[%clk 0:00:07]}  Nxc5 {[%clk 0:00:04]} 42. dxc5 {[%clk 0:00:08]}  b3 {[%clk 0:00:04]} 43. c4 {[%clk 0:00:07]}  Rh1+ {[%clk 0:00:04]} 44. Bc1 {[%clk 0:00:07]}  dxc4 {[%clk 0:00:04]} 45. Rg4 {[%clk 0:00:07]}  c6 {[%clk 0:00:04]} 46. Rxc4 {[%clk 0:00:08]}  Rf7 {[%clk 0:00:04]} 47. Rc3 {[%clk 0:00:07]}  Rf1 {[%clk 0:00:03]} 48. Rxb3 {[%clk 0:00:07]}  R7xf3 {[%clk 0:00:04]} 49. Rb7+ {[%clk 0:00:07]}  Rf7 {[%clk 0:00:05]} 50. Rb3 {[%clk 0:00:07]}  Re7 {[%clk 0:00:04]} 51. Rc3 {[%clk 0:00:08]}  Ree1 {[%clk 0:00:04]} 52. b4 {[%clk 0:00:07]}  axb4 {[%clk 0:00:05]} 53. Rc4 {[%clk 0:00:08]}  b3 {[%clk 0:00:05]} 54. a5 {[%clk 0:00:08]}  g5 {[%clk 0:00:04]} 55. Kb2 {[%clk 0:00:09]}  g4 {[%clk 0:00:03]} 56. a6 {[%clk 0:00:08]}  Re7 {[%clk 0:00:01]} 57. Rxg4+ {[%clk 0:00:07]}  Kf7 {[%clk 0:00:01]} 58. Ra4 {[%clk 0:00:08]}  Ra7 {[%clk 0:00:02]} 59. Bd2 {[%clk 0:00:08]}  Rf2 {[%clk 0:00:02]} 60. Kc3 {[%clk 0:00:07]}  b2 {[%clk 0:00:03]} 61. Rb4 {[%clk 0:00:07]}  Rxa6 {[%clk 0:00:03]} 62. Rxb2 {[%clk 0:00:06]}  Ra3+ {[%clk 0:00:04]} 63. Kd4 {[%clk 0:00:06]}  Raf3 {[%clk 0:00:03]} 64. Rb7+ {[%clk 0:00:04]}  Ke6 {[%clk 0:00:03]} 65. Ba5 {[%clk 0:00:05]}  Rf4+ {[%clk 0:00:04]} 66. Kc3 {[%clk 0:00:05]}  R2f3+ {[%clk 0:00:04]} 67. Kd2 {[%clk 0:00:05]}  Kd5 {[%clk 0:00:04]} 68. Bb6 {[%clk 0:00:04]}  Rf2+ {[%clk 0:00:05]} 69. Ke3 {[%clk 0:00:04]}  R4f3# {[%clk 0:00:06]} 0-1


[Site "https://www.chess.com"]

[Event "Titled Tuesday Blitz April 11 Early 2023"]
[White "Samunenkov, Ihor"]
[Black "tetrix83"]
[WhiteFideId "14187086"]
[WhiteElo "2457"]
[BlackElo "2521"]
[Result "1-0"]
[Round "05"]
[TimeControl "180+2"]
[Date "2023.04.11"]
[WhiteClock "0:00:03"]
[BlackClock "0:00:26"]

1. e4 {[%clk 0:03:00]}  c5 {[%clk 0:02:32]} 2. Nf3 {[%clk 0:03:00]}  e6 {[%clk 0:02:31]} 3. d4 {[%clk 0:02:59]}  cxd4 {[%clk 0:02:32]} 4. Nxd4 {[%clk 0:02:59]}  a6 {[%clk 0:02:33]} 5. c4 {[%clk 0:02:58]}  Qc7 {[%clk 0:02:33]} 6. Nc3 {[%clk 0:02:53]}  Nf6 {[%clk 0:02:33]} 7. a3 {[%clk 0:02:53]}  b6 {[%clk 0:02:30]} 8. Bd3 {[%clk 0:02:35]}  Bb7 {[%clk 0:02:30]} 9. f4 {[%clk 0:02:30]}  d6 {[%clk 0:02:29]} 10. O-O {[%clk 0:02:27]}  Nbd7 {[%clk 0:02:29]} 11. b4 {[%clk 0:02:27]}  Be7 {[%clk 0:02:29]} 12. Bb2 {[%clk 0:02:25]}  h5 {[%clk 0:02:23]} 13. Qe2 {[%clk 0:02:19]}  Rc8 {[%clk 0:02:17]} 14. Rac1 {[%clk 0:02:14]}  g6 {[%clk 0:02:15]} 15. Nf3 {[%clk 0:02:01]}  O-O {[%clk 0:02:00]} 16. h3 {[%clk 0:01:16]}  Rfe8 {[%clk 0:01:44]} 17. f5 {[%clk 0:00:50]}  exf5 {[%clk 0:01:42]} 18. exf5 {[%clk 0:00:50]}  Bf8 {[%clk 0:01:40]} 19. Qf2 {[%clk 0:00:32]}  Bh6 {[%clk 0:01:40]} 20. Rce1 {[%clk 0:00:29]}  g5 {[%clk 0:01:34]} 21. Nxg5 {[%clk 0:00:26]}  Bxg5 {[%clk 0:01:30]} 22. Qg3 {[%clk 0:00:26]}  Nh7 {[%clk 0:01:28]} 23. h4 {[%clk 0:00:21]}  Rxe1 {[%clk 0:01:27]} 24. Rxe1 {[%clk 0:00:22]}  d5 {[%clk 0:01:27]} 25. Qxc7 {[%clk 0:00:20]}  Rxc7 {[%clk 0:01:26]} 26. hxg5 {[%clk 0:00:15]}  Nxg5 {[%clk 0:01:26]} 27. Re8+ {[%clk 0:00:14]}  Nf8 {[%clk 0:01:24]} 28. Nxd5 {[%clk 0:00:14]}  Bxd5 {[%clk 0:01:22]} 29. cxd5 {[%clk 0:00:15]}  Rd7 {[%clk 0:01:14]} 30. Bc4 {[%clk 0:00:14]}  b5 {[%clk 0:01:15]} 31. Bb3 {[%clk 0:00:14]}  Nh7 {[%clk 0:01:05]} 32. Bd4 {[%clk 0:00:09]}  Rd6 {[%clk 0:01:01]} 33. Be5 {[%clk 0:00:09]}  Rd7 {[%clk 0:00:48]} 34. d6 {[%clk 0:00:09]}  Ng5 {[%clk 0:00:47]} 35. Bd5 {[%clk 0:00:08]}  Ra7 {[%clk 0:00:37]} 36. Bc6 {[%clk 0:00:06]}  f6 {[%clk 0:00:37]} 37. Bxf6 {[%clk 0:00:04]}  Nf7 {[%clk 0:00:34]} 38. Be7 {[%clk 0:00:04]}  Kg7 {[%clk 0:00:33]} 39. Bxf8+ {[%clk 0:00:04]}  Kf6 {[%clk 0:00:33]} 40. d7 {[%clk 0:00:04]}  Rc7 {[%clk 0:00:32]} 41. d8=Q+ {[%clk 0:00:02]}  Nxd8 {[%clk 0:00:31]} 42. Rxd8 {[%clk 0:00:03]}  Rxc6 {[%clk 0:00:32]} 43. Rd6+ {[%clk 0:00:03]}  Rxd6 {[%clk 0:00:32]} 44. Bxd6 {[%clk 0:00:04]}  Kxf5 {[%clk 0:00:33]} 45. Kh2 {[%clk 0:00:05]}  Kg4 {[%clk 0:00:30]} 46. Be7 {[%clk 0:00:04]}  Kf5 {[%clk 0:00:25]} 47. Kh3 {[%clk 0:00:04]}  Ke6 {[%clk 0:00:25]} 48. Bg5 {[%clk 0:00:04]}  Kd5 {[%clk 0:00:26]} 49. Kh4 {[%clk 0:00:05]}  a5 {[%clk 0:00:26]} 50. bxa5 {[%clk 0:00:03]} 1-0


[Site "https://www.chess.com"]

[Event "Titled Tuesday Blitz April 11 Early 2023"]
[White "Sai Han Thiha"]
[Black "Aradhya, Garg"]
[WhiteFideId "13012290"]
[BlackFideId "25006746"]
[WhiteElo "1954"]
[BlackElo "2263"]
[Result "0-1"]
[Round "05"]
[TimeControl "180+2"]
[Date "2023.04.11"]
[WhiteClock "0:00:01"]
[BlackClock "0:00:11"]

1. d4 {[%clk 0:03:00]}  d5 {[%clk 0:02:59]} 2. c4 {[%clk 0:03:01]}  c6 {[%clk 0:02:59]} 3. cxd5 {[%clk 0:03:02]}  cxd5 {[%clk 0:03:00]} 4. Nc3 {[%clk 0:03:02]}  Nf6 {[%clk 0:02:58]} 5. Bf4 {[%clk 0:03:03]}  Nc6 {[%clk 0:02:58]} 6. e3 {[%clk 0:03:03]}  a6 {[%clk 0:02:53]} 7. Nf3 {[%clk 0:03:04]}  Bf5 {[%clk 0:02:52]} 8. Ne5 {[%clk 0:03:03]}  e6 {[%clk 0:02:51]} 9. g4 {[%clk 0:01:48]}  Bg6 {[%clk 0:01:33]} 10. h4 {[%clk 0:01:48]}  Bb4 {[%clk 0:01:21]} 11. h5 {[%clk 0:01:42]}  Ne4 {[%clk 0:01:15]} 12. Rc1 {[%clk 0:00:49]}  Qa5 {[%clk 0:01:09]} 13. hxg6 {[%clk 0:00:47]}  Nxe5 {[%clk 0:01:07]} 14. Bxe5 {[%clk 0:00:39]}  fxg6 {[%clk 0:01:06]} 15. Bd3 {[%clk 0:00:30]}  O-O {[%clk 0:00:57]} 16. f3 {[%clk 0:00:27]}  Nxc3 {[%clk 0:00:48]} 17. bxc3 {[%clk 0:00:28]}  Bxc3+ {[%clk 0:00:49]} 18. Kf2 {[%clk 0:00:29]}  Qxa2+ {[%clk 0:00:43]} 19. Rc2 {[%clk 0:00:28]}  Qa3 {[%clk 0:00:43]} 20. Rxh7 {[%clk 0:00:14]}  Kxh7 {[%clk 0:00:12]} 21. Qh1+ {[%clk 0:00:15]}  Kg8 {[%clk 0:00:12]} 22. Bxg6 {[%clk 0:00:15]}  Rf7 {[%clk 0:00:13]} 23. Qh7+ {[%clk 0:00:09]}  Kf8 {[%clk 0:00:13]} 24. Qh8+ {[%clk 0:00:09]}  Ke7 {[%clk 0:00:13]} 25. Qxa8 {[%clk 0:00:09]}  Qb3 {[%clk 0:00:14]} 26. Re2 {[%clk 0:00:06]}  Rf8 {[%clk 0:00:13]} 27. Qa7 {[%clk 0:00:05]}  Qb4 {[%clk 0:00:11]} 28. Qc5+ {[%clk 0:00:04]}  Qxc5 {[%clk 0:00:11]} 29. dxc5 {[%clk 0:00:05]}  Bxe5 {[%clk 0:00:11]} 30. f4 {[%clk 0:00:05]}  a5 {[%clk 0:00:11]} 31. Ra2 {[%clk 0:00:04]}  Bc3 {[%clk 0:00:11]} 32. Ke2 {[%clk 0:00:04]}  Bb4 {[%clk 0:00:11]} 33. Kd3 {[%clk 0:00:03]}  Rc8 {[%clk 0:00:11]} 34. Rh2 {[%clk 0:00:02]}  Rxc5 {[%clk 0:00:12]} 35. Rh7 {[%clk 0:00:03]}  Kf6 {[%clk 0:00:12]} 36. Be8 {[%clk 0:00:04]}  Rc3+ {[%clk 0:00:10]} 37. Kd4 {[%clk 0:00:02]}  Rc4+ {[%clk 0:00:10]} 38. Kd3 {[%clk 0:00:02]}  Rc3+ {[%clk 0:00:10]} 39. Kd4 {[%clk 0:00:02]}  Rc8 {[%clk 0:00:09]} 40. Kd3 {[%clk 0:00:03]}  Rxe8 {[%clk 0:00:08]} 41. g5+ {[%clk 0:00:04]}  Kg6 {[%clk 0:00:08]} 42. Rh1 {[%clk 0:00:04]}  e5 {[%clk 0:00:09]} 43. Rf1 {[%clk 0:00:02]}  exf4 {[%clk 0:00:09]} 44. exf4 {[%clk 0:00:03]}  Bc5 {[%clk 0:00:09]} 45. Rf3 {[%clk 0:00:03]}  d4 {[%clk 0:00:08]} 46. Rf1 {[%clk 0:00:01]}  b6 {[%clk 0:00:08]} 47. Kd2 {[%clk 0:00:01]}  Re3 {[%clk 0:00:08]} 48. Rf2 {[%clk 0:00:02]}  Kf5 {[%clk 0:00:09]} 49. Rf1 {[%clk 0:00:02]}  Bb4+ {[%clk 0:00:09]} 50. Kc2 {[%clk 0:00:02]}  d3+ {[%clk 0:00:10]} 51. Kd1 {[%clk 0:00:02]}  d2 {[%clk 0:00:11]} 52. Kc2 {[%clk 0:00:01]}  Re1 {[%clk 0:00:11]} 0-1


[Site "https://www.chess.com"]